Cogmind - Beta 11 X7 @@@ ROGUE MODE // 2021.08.25 @ 23:03:34 Player: Runia Result: Destroyed by Y-45 Defender with Heavy Assault Rifle Performance ------------- Evolutions (2) 1000 Regions Visited (6) 1200 Robots Destroyed (73) 365 Value Destroyed (2032) 2032 Prototype IDs (8) 160 Alien Tech Used (0) 0 Bonus (-14) -14 TOTAL SCORE: 4743 Bonus ------- High Alert Combat Kills 26 Friendly Fire -40 Cogmind --------- Core Integrity 0/550 Matter 260/300 Energy 130/160 System Corruption 5% Temperature Cool (49) Movement Rolling (145) Ox3 Location -8/Storage Parts ------- > --- POWER (1) -------- Light Nuclear Core > --- PROPULSION (3) --- Aluminum Leg Improved Carbon-fiber Leg Compact Wheel > --- UTILITY (4) ------ High-capacity Storage Unit Core Shielding > --- WEAPON (3) ------- Improved Medium Laser Heavy Laser Heavy Laser > --- INVENTORY (20) --- Aerolev Unit Aerolev Unit Aerolev Unit Aerolev Unit Aerolev Unit Medium Storage Unit Gravity Neutralizing Apparatus Structural Scanner Experimental Sensor Array Improved Terrain Scanner Improved Terrain Scan Processor Ion Cannon Advanced EMP Blaster Improved Datajack Chainsword Peak State ------------ > --- POWER ------------ Deuterium Engine > --- PROPULSION ------- Armored Treads Armored Huge Wheel > --- UTILITY ---------- High-capacity Storage Unit Gravity Neutralizing Apparatus Structural Scanner Improved Light Armor Plating > --- WEAPON ----------- Improved Medium Laser Heavy Laser Heavy Laser > --- INVENTORY -------- Aerolev Unit Aerolev Unit Aerolev Unit Aerolev Unit Aerolev Unit Aerolev Unit Cooling System Cooling System Medium Storage Unit Experimental Sensor Array Improved Terrain Scanner Improved Terrain Scan Processor Improved Light Armor Plating Heavy Laser Heavy Laser Ion Cannon Advanced EMP Blaster Improved Datajack Chainsword [Rating: 42] Favorites ----------- Power Ion Engine Engine Ion Engine Power Core Light Nuclear Core Propulsion Light Treads Treads Light Treads Leg Aluminum Leg Wheel Armored Huge Wheel Hover Unit Aerolev Unit Utility Cooling System Device Cooling System Storage Large Storage Unit Hackware Hacking Suite Protection Hardened Medium Armor Plating Weapon Improved Medium Laser Energy Gun Improved Medium Laser Energy Cannon Ion Cannon Ballistic Gun Assault Rifle Launcher Grenade Launcher Slashing Weapon Chainsword Special Melee Weapon Improved Datajack Build | -11 -10 -10 -10 -9 -8 -8 ------- Run | Scr Mat Min Exi Min Mat Sto Slots Evolved 4 | . . . . . 4 . Power . | . . . . . . . Propulsion 1 | . . . . . 1 . Utility 2 | . . . . . 2 . Weapon 1 | . . . . . 1 . Parts Attached 76 | . 14 3 . 6 29 24 Power 7 | . 3 . . 1 2 1 Engine 6 | . 3 . . 1 2 . Core 1 | . . . . . . 1 Reactor . | . . . . . . . Propulsion 15 | . 3 . . 1 4 7 Treads 4 | . 2 . . . 2 . Leg 4 | . 1 . . . . 3 Wheel 3 | . . . . 1 1 1 Hover 4 | . . . . . 1 3 Flight . | . . . . . . . Utility 18 | . 2 2 . . 8 6 Device 8 | . 1 . . . 4 3 Storage 4 | . 1 2 . . 1 . Processor . | . . . . . . . Hackware 1 | . . . . . 1 . Protection 5 | . . . . . 2 3 Artifact . | . . . . . . . Weapon 36 | . 6 1 . 4 15 10 Energy Gun 21 | . 4 1 . 2 8 6 Energy Cannon 2 | . . . . . 1 1 Ballistic Gun 1 | . 1 . . . . . Ballistic Cannon . | . . . . . . . Launcher 8 | . 1 . . 2 4 1 Special Weapon . | . . . . . . . Impact Weapon . | . . . . . . . Slashing Weapon 3 | . . . . . 2 1 Piercing Weapon . | . . . . . . . Special Melee Weapon 1 | . . . . . . 1 Unidentified Prototypes 4 | . 1 . . . 1 2 Parts Lost 16 | . 3 . . . 4 9 Power 3 | . 1 . . . 1 1 Propulsion 3 | . 1 . . . . 2 Utility 6 | . . . . . 2 4 Weapon 4 | . 1 . . . 1 2 Highest Loss Streak 8 | . 3 . . . 3 8 Average Slot Usage (%) 90 | . 86 100 100 100 86 78 Engine 11 | . 13 14 14 14 9 5 Treads 17 | . 19 28 28 23 7 5 Leg 2 | . 8 . . . . 2 Wheel 3 | . . . . 4 9 4 Device 11 | . 2 14 14 14 16 11 Storage 12 | . 14 14 14 14 9 9 Protection 2 | . . . . . 5 7 Energy Gun 23 | . 15 24 28 27 26 21 Ballistic Gun 3 | . 11 . . . . . Naked Turns . | . . . . . . . Heaviest Build 70 | 11 33 33 32 33 70 66 Greatest Support 40 | 20 40 40 40 40 28 28 Greatest Overweight (x) 4 | . 1 . . 2 4 3 Average Overweight (x) . | . . . . . 2 2 Largest Inventory Capacity 20 | 8 15 20 15 15 20 20 Average Capacity 16 | 8 14 15 15 15 19 20 Most Carried 20 | 5 15 15 15 15 20 20 Average Carried 14 | 5 7 14 15 14 18 17 Final Capacity 20 | 8 15 15 15 15 20 20 Final Carried 20 | 4 14 15 15 15 20 15 Class Distribution -------------------- 68% | Mutant 21% | Tank 10% | Skirmisher Dominant Class ---------------- Mutant | -10/Materials Mutant | -10/Mines Mutant | -10/Exiles Mutant | -9/Mines Tank | -8/Materials Tank | -8/Storage Resources | -11 -10 -10 -10 -9 -8 -8 ----------- Run | Scr Mat Min Exi Min Mat Sto Matter Collected 1148 | 187 261 63 . 89 240 308 Remotely . | . . . . . . . Salvage Created 2637 | . 794 42 . 175 885 741 Parts 137 | . 57 4 . 11 40 25 Haulers Intercepted 5 | . 2 . . . 1 2 Recyclers Shooed 2 | . 1 . . . . 1 Parts Field Recycled . | . . . . . . . Retrieved Matter . | . . . . . . . Parts Self-Destructed . | . . . . . . . Prevented . | . . . . . . . Kills | -11 -10 -10 -10 -9 -8 -8 ------- Run | Scr Mat Min Exi Min Mat Sto Combat Hostiles Destroyed 58 | . 15 1 . 8 23 11 Melee 2 | . . . . . . 2 Guns 42 | . 15 1 . 3 15 8 AOE 11 | . . . . 5 6 . Classes Destroyed 12 | . 7 . . 1 2 2 Builder 2 | . 1 . . . 1 . Hauler 5 | . 2 . . . 1 2 Recycler 4 | . 2 . . . 1 1 Operator 1 | . 1 . . . . . Watcher 3 | . 3 . . . . . Swarmer 19 | . 6 . . 3 10 . Grunt 27 | . 9 1 . 3 7 7 Brawler 1 | . . . . . . 1 Duelist 3 | . . . . 2 . 1 Sentry 5 | . . . . . 5 . Specialist 2 | . . . . . . 2 Hunter 1 | . . . . . 1 . Best Kill Streak 6 | . 6 1 . 3 5 6 Combat Bots Only 6 | . 3 1 . 3 5 6 Max Kills in Single Turn 3 | . 2 1 . 3 2 2 Gunslinging 1 | . 1 . . . . 1 Exploded 3 | . . . . 3 2 . Melee 1 | . . . . . . 1 Uniques/NPCs Destroyed . | . . . . . . . Combat | -11 -10 -10 -10 -9 -8 -8 -------- Run | Scr Mat Min Exi Min Mat Sto Damage Taken 4049 | . 693 61 . 239 1226 1830 Core 751 | . 116 . . 79 146 410 Absorbed by Shields . | . . . . . . . Core Remaining (%) 61 | 100 . . . 22 . . Volleys Fired 172 | . 61 5 . 10 64 32 Largest 3 | . 2 2 . 2 3 3 Hottest 194 | . 76 106 . 106 194 194 Shots Fired 410 | . 122 10 . 17 166 95 Gun 396 | . 122 10 . 14 155 95 Cannon 5 | . . . . . 5 . Launcher 9 | . . . . 3 6 . Special . | . . . . . . . Kinetic 61 | . 61 . . . . . Thermal 340 | . 61 10 . 14 160 95 Explosive 9 | . . . . 3 6 . Electromagnetic . | . . . . . . . Robot Hit Streak 14 | . 12 4 . 5 10 14 Robot Miss Streak 5 | . 5 1 . 2 4 3 Penetration Max . | . . . . . . . Secondary Targets 8 | . 4 . . . 1 3 Max Gunslinging Chain 1 | . 1 . . . 1 1 Shots Hit Robots 277 | . 77 8 . 13 99 80 Core Hits 114 | . 34 3 . 14 39 24 Critical Kills 2 | . 2 . . . . . Critical Parts Destroyed 1 | . 1 . . . . . Critical Strikes 15 | . 3 1 . 1 5 5 Burn 11 | . . 1 . 1 5 4 Destroy 3 | . 3 . . . . . Sever 1 | . . . . . . 1 Melee Attacks 16 | . . . . . 2 14 Impact . | . . . . . . . Slashing 16 | . . . . . 2 14 Piercing . | . . . . . . . Sneak Attacks 2 | . . . . . . 2 Combat Hostiles . | . . . . . . . Follow-up Attacks . | . . . . . . . Damage Inflicted 5707 | . 1012 136 . 589 2202 1768 Guns 4290 | . 1012 136 . 173 1713 1256 Cannons . | . . . . . . . Explosions 905 | . . . . 416 489 . Melee 506 | . . . . . . 506 Ramming 6 | . . . . . . 6 Kinetic 470 | . 470 . . . . . Thermal 3820 | . 542 136 . 173 1713 1256 Explosive 862 | . . . . 416 446 . Electromagnetic 43 | . . . . . 43 . Impact . | . . . . . . . Slashing 506 | . . . . . . 506 Piercing . | . . . . . . . Highest Corruption 5 | . . . . . 3 5 Average Corruption 3 | . . . . . 2 3 Corruption Purged . | . . . . . . . Effects 33 | . . . . . 22 11 Message Errors 5 | . . . . . 4 1 Matter Fused 4 | . . . . . 3 1 Heat Flow Errors 6 | . . . . . 3 3 Energy Discharges 10 | . . . . . 5 5 Data Loss (minor) 4 | . . . . . 3 1 Weapon Failures 4 | . . . . . 4 . Overload Shots . | . . . . . . . Overflow Damage 132 | . . . . . 85 47 Projectiles . | . . . . . . . Explosions 85 | . . . . . 85 . Melee 47 | . . . . . . 47 Knockbacks . | . . . . . . . Impact . | . . . . . . . Kinetic . | . . . . . . . Secondary . | . . . . . . . Self-Inflicted Damage 264 | . . . . 64 200 . Shots 7 | . . . . 2 5 . Rammed 3 | . . . . . . 3 Targets Rammed 3 | . . . . . . 3 Kicked . | . . . . . . . Crushed . | . . . . . . . Highest Temperature 337 | . 180 8 . . 306 337 Average Temperature 82 | . 59 3 . . 96 100 Received Heat Transfer 1155 | . 237 39 . 24 270 585 Effects 1 | . . . . . . 1 Energy Bleed 1 | . . . . . . 1 Siege Activations . | . . . . . . . Robots Corrupted . | . . . . . . . Combat Hostiles . | . . . . . . . Parts Fried . | . . . . . . . Impact Corruptions . | . . . . . . . Robots Melted 3 | . . . . . 2 1 Combat Hostiles 3 | . . . . . 2 1 Parts Melted 20 | . 2 . . 1 8 9 Heat Transferred 9213 | . 1369 407 . 518 4070 2849 Parts Sabotaged . | . . . . . . . Parts Stolen . | . . . . . . . Parts Stripped . | . . . . . . . Power Chain Reactions 1 | . . . . . 1 . Missiles Intercepted . | . . . . . . . Alert | -11 -10 -10 -10 -9 -8 -8 ------- Run | Scr Mat Min Exi Min Mat Sto Peak Influence 437 | . 287 67 . 156 386 437 Initial 143 | . . 32 . . 19 143 Average 164 | . 122 54 . 80 244 277 Maximum Alert Level 2 | . 1 . . . 2 2 Low Security (%) 61 | 100 85 100 . 100 16 27 Level 1 36 | . 14 . . . 83 58 Level 2 1 | . . . . . . 13 Level 3 . | . . . . . . . Level 4 . | . . . . . . . Level 5 . | . . . . . . . High Security . | . . . . . . . Max Security . | . . . . . . . Squads Dispatched 8 | . 2 . . . 1 5 Investigation 1 | . . . . . . 1 Extermination . | . . . . . . . Reinforcement 4 | . 2 . . . 1 1 Assault . | . . . . . . . Garrison 3 | . . . . . . 3 Intercept . | . . . . . . . Construction Impeded . | . . . . . . . Haulers Reinforced . | . . . . . . . Active Scanning Responses . | . . . . . . . Cargo Convoy Interrupts . | . . . . . . . Stealth | -11 -10 -10 -10 -9 -8 -8 --------- Run | Scr Mat Min Exi Min Mat Sto Distress Signals 4 | . 3 . . . 1 . Communications Jammed . | . . . . . . . Distress Signals . | . . . . . . . Times Spotted 89 | . 24 2 . 8 35 20 Peak Tracking Total 5 | . 4 2 . 3 5 5 Tactical Retreats 4 | . . 1 . . 1 2 Traps | -11 -10 -10 -10 -9 -8 -8 ------- Run | Scr Mat Min Exi Min Mat Sto Traps Triggered 5 | . 1 . . . 3 1 Indirectly . | . . . . . . . Trap Hack Attempts . | . . . . . . . Triggered . | . . . . . . . Disarmed . | . . . . . . . Reprogrammed . | . . . . . . . Reused . | . . . . . . . Traps Extracted . | . . . . . . . Installed . | . . . . . . . Triggered . | . . . . . . . Machines | -11 -10 -10 -10 -9 -8 -8 ---------- Run | Scr Mat Min Exi Min Mat Sto Machines Disabled 4 | . . . . . 3 1 Max in Single Turn 1 | . . . . . 1 1 Garrison Access 1 | . . . . . 1 . Machines Sabotaged . | . . . . . . . Garrisons Compromised . | . . . . . . . Overloaded Fab Kills . | . . . . . . . Fab Network Shutdowns . | . . . . . . . Hacking | -11 -10 -10 -10 -9 -8 -8 --------- Run | Scr Mat Min Exi Min Mat Sto Machines Accessed 19 | . 6 . 1 . 9 3 Terminals 15 | . 6 . . . 6 3 Fabricators . | . . . . . . . Repair Stations 1 | . . . . . 1 . Recycling Units . | . . . . . . . Scanalyzers 1 | . . . . . 1 . Garrison Access 1 | . . . . . 1 . Total Hacks 55 | . 16 . 1 . 27 11 Successful 25 | . 6 . 1 . 16 2 Failed 30 | . 10 . . . 11 9 Catastrophic 3 | . 1 . . . 1 1 Database Lockouts . | . . . . . . . Manual 22 | . 8 . . . 12 2 Terminals 45 | . 16 . . . 18 11 Fabricators . | . . . . . . . Repair Stations 2 | . . . . . 2 . Recycling Units . | . . . . . . . Scanalyzers 4 | . . . . . 4 . Garrison Access 3 | . . . . . 3 . Terminal Hacks 13 | . 4 . 1 . 6 2 Record 1 | . . . 1 . . . Robot Analysis 1 | . . . . . 1 . Prototype ID Bank 2 | . 2 . . . . . Open Door 1 | . . . . . . 1 Branch Access Points 1 | . . . . . 1 . Alert Level 1 | . 1 . . . . . Unreport Threat 1 | . . . . . 1 . Locate Traps 2 | . . . . . 1 1 Zone Layout 3 | . 1 . . . 2 . Fabricator Hacks . | . . . . . . . Repair Station Hacks 2 | . . . . . 2 . Scan Component 1 | . . . . . 1 . Repair 1 | . . . . . 1 . Recycling Unit Hacks . | . . . . . . . Scanalyzer 4 | . . . . . 4 . Insert Component 2 | . . . . . 2 . Analyze 2 | . . . . . 2 . Garrison Access Hacks 1 | . . . . . 1 . Seal Access 1 | . . . . . 1 . Unauthorized Hacks 5 | . 2 . . . 3 . Terminals 5 | . 2 . . . 3 . Botnet 5 | . 2 . . . 3 . Fabricators . | . . . . . . . Repair Stations . | . . . . . . . Recycling Units . | . . . . . . . Scanalyzers . | . . . . . . . Garrison Access . | . . . . . . . Data Cores Recovered . | . . . . . . . Used . | . . . . . . . Hacking Detections 14 | . 6 . . . 5 3 Full Trace Events 1 | . . . . . . 1 Feedback Events . | . . . . . . . Feedback Blocked . | . . . . . . . Robot Schematics Acquired . | . . . . . . . Robots Built . | . . . . . . . Matter . | . . . . . . . Time . | . . . . . . . Total Robot Build Rating . | . . . . . . . Part Schematics Acquired 2 | . . . . . 2 . Parts Built . | . . . . . . . Matter . | . . . . . . . Time . | . . . . . . . Total Part Build Rating . | . . . . . . . Parts Repaired 1 | . . . . . 1 . Time 136 | . . . . . 136 . Parts Recycled . | . . . . . . . Recycled Matter . | . . . . . . . Retrieved Matter . | . . . . . . . Retrieved Components . | . . . . . . . Parts Scanalyzed 2 | . . . . . 2 . Part Schematics Acquired 2 | . . . . . 2 . Parts Damaged 1 | . . . . . 1 . Bothacking | -11 -10 -10 -10 -9 -8 -8 ------------ Run | Scr Mat Min Exi Min Mat Sto Used RIF Installer . | . . . . . . . Robots Hacked . | . . . . . . . Non-combat . | . . . . . . . Combat . | . . . . . . . Robot Hacks Applied . | . . . . . . . Relay Couplers Released . | . . . . . . . Robots Rewired . | . . . . . . . Allies Hacked . | . . . . . . . Hacks Repelled . | . . . . . . . Allies | -11 -10 -10 -10 -9 -8 -8 -------- Run | Scr Mat Min Exi Min Mat Sto Total Allies 2 | . . . . 2 . . Largest Group 2 | . . . . 2 . . Highest-Rated Group 40 | . . . . 40 . . Highest-Rated Ally 31 | . . . . 31 . . Total Orders . | . . . . . . . Ally Attacks 2 | . . . . 2 . . Total Damage 22 | . . . . 22 . . Kills . | . . . . . . . Allies Corrupted . | . . . . . . . Allies Melted . | . . . . . . . Intel | -11 -10 -10 -10 -9 -8 -8 ------- Run | Scr Mat Min Exi Min Mat Sto Robot Analysis Total 1 | . . . . . 1 . Derelict Logs Recovered 2 | . . 1 . 1 . . Drone Launches . | . . . . . . . Drone Recoveries . | . . . . . . . Exploration | -11 -10 -10 -10 -9 -8 -8 ------------- Run | Scr Mat Min Exi Min Mat Sto Turns Passed 4067 | 1 1148 351 556 543 1005 463 Spaces Moved 2107 | 1 556 206 348 345 519 132 Core . | . . . . . . . Treads 1204 | . 446 206 348 204 . . Legs 128 | 1 110 . . . . 17 Wheels 768 | . . . . 141 519 108 Hover 7 | . . . . . . 7 Flight . | . . . . . . . Fastest Speed 115 | 120 120 160 160 120 115 130 Average Speed 151 | 120 164 160 160 143 130 165 Slowest Speed 360 | 120 200 160 160 160 150 360 Overloaded Moves . | . . . . . . . Propulsion Burnouts . | . . . . . . . Robots Hopped . | . . . . . . . Cave-ins Triggered . | . . . . . . . Exploration Rate (%) 49 | 2 82 53 67 62 50 27 Regions Visited 6 Branch Regions 4 Pre-discovered Areas 3 | . . 1 1 1 . . Known Exits Taken 1 | . . . . . 1 . Unknown Exits Taken 5 | 1 1 1 1 1 . . Scrap Searched 3 | . . 2 . 1 . . Spaces Dug 21 | . . . . . 21 . Terrain Destroyed 69 | . . . . 24 45 . Melee 2 | . . . . . 2 . Projectile . | . . . . . . . AOE 67 | . . . . 24 43 . Terrain Rammed . | . . . . . . . Walls Destroyed . | . . . . . . . Machines Disabled . | . . . . . . . Actions | -11 -10 -10 -10 -9 -8 -8 --------- Run | Scr Mat Min Exi Min Mat Sto Total 2597 | 2 674 217 347 374 711 272 Wait 127 | . 10 2 . 10 53 52 Move 2101 | . 555 205 347 344 518 132 Hop . | . . . . . . . Pick Up 58 | . 22 1 . 1 27 7 Fast Attach 7 | . 2 . . 1 1 3 Attach 24 | . 7 . . . 9 8 Detach 1 | . . . . . . 1 Swap 45 | . 5 3 . 5 19 13 Drop 43 | 2 12 1 . 3 18 7 Fire 172 | . 61 5 . 10 64 32 Melee 16 | . . . . . 2 14 Ram . | . . . . . . . Kick . | . . . . . . . Crush 3 | . . . . . . 3 Escape Stasis . | . . . . . . . Rewire . | . . . . . . . Trap . | . . . . . . . Miscellaneous . | . . . . . . . Route ------- -11/Scrapyard -10/Materials (discovered 4 exits: [*Mat x2] / [*Min x2]) -10/Mines (discovered 2 exits: [*Mat] / *Exi) -10/Exiles -9/Mines -8/Materials -8/Storage History --------- Turn | Location | Event 2 | -11/Scrapyard | Discovered new exit (range 0) 2 | -11/Scrapyard | Entered Materials 306 | -10/Materials | Build established: Mutant 366 | -10/Materials | Discovered new exit (range 16) 380 | -10/Materials | Lost 3 parts (1p1n1w) 757 | -10/Materials | Discovered new exit (range 13) 921 | -10/Materials | Discovered new exit (range 16) 1028 | -10/Materials | Discovered new exit (range 14) 1150 | -10/Materials | Entered Mines 1243 | -10/Mines | Discovered new exit (range 15) 1495 | -10/Mines | Deemed a non-threat by the Exiles lab entrance 1495 | -10/Mines | Discovered new exit (range 5) 1501 | -10/Mines | Entered Exiles 1540 | -10/Exiles | Met 8R-AWN 1567 | -10/Exiles | Met EX-HEX 1631 | -10/Exiles | Met EX-DEC 1637 | -10/Exiles | Learned location of Zion (-6) 1804 | -10/Exiles | Discovered new exit (range 14) 1884 | -10/Exiles | Met EX-BIN 2057 | -10/Exiles | Entered Mines 2060 | -9/Mines | Core integrity fell below 50% 2140 | -9/Mines | Discovered new exit (range 10) 2338 | -9/Mines | Found a damaged Exp. Sensor Array with a note attached 2342 | -9/Mines | Found Prototype Device 2600 | -9/Mines | Entered Materials 2600 | -8/Materials | Evolved 4 slots: Propulsion x1, Utility x2, Weapon x1 2829 | -8/Materials | Identified Exp. Sensor Array 2989 | -8/Materials | Build established: Tank 2995 | -8/Materials | Repaired Broken Exp. Sensor Array 3393 | -8/Materials | Identified exit to Storage 3442 | -8/Materials | Lost 3 parts (1p1u1w) 3499 | -8/Materials | Build established: Skirmisher 3605 | -8/Materials | Entered Storage 3824 | -8/Storage | Build established: Tank 3832 | -8/Storage | Garrison activated, responded to threat 3903 | -8/Storage | Core integrity fell below 50% 3932 | -8/Storage | Core integrity fell below 20% 3949 | -8/Storage | Lost 8 parts (1p1n4u2w) 4068 | -8/Storage | Destroyed by Y-45 Defender with Heavy Assault Rifle Last Messages --------------- Acquired 24 matter. R-06 Scavenger collects Adv. Visual Processing Unit. R-06 Scavenger collects Imp. Cooling System. Acquired Aerolev Unit. Acquired 2 matter. R-06 Scavenger collects Particle Gun. Acquired 8 matter. R-06 Scavenger collects Pulse Rifle. System corrupted: Heat flow error (+187). Sneak attack on R-06 Scavenger. R-06 Scavenger destroyed. R-06 Scavenger collects Adv. Visual Processing Unit. R-06 Scavenger collects Pulse Rifle. R-06 Scavenger collects Imp. Cooling System. Sneak attack on R-06 Scavenger. Destroyed Lgt. Ion Engine. Destroyed Tractor Beam. Acquired Com. Wheel. Dropped Aerolev Unit. System corrupted: Energy discharge (-44). Map ----- +----------------------------------------------------+ | ?????????????????????????????????????????????????? | | ?????????????????????????????????????????????????? | | ?????????????????????????????????????????????????? | | ?????????????????????????????????????????????????? | | ??????????????????????????????????^?? ?????????? | | ??????????????????????????????????^?? ???????? | | ??????????????????????????????????^ ???????? | | ???????????????????????????????????## ???? | | ???????????????????????????????????## ????? | | ???????????????????????????????????## ????? | | ???????????????????????????????????## ??? | | ???????????????????????????????????## ##???## | | ???????????????????????????????????## ##???## | | ???????????????????????????????????## ##???## | | ???????????????????????????????????## ##???## | | ???????????????????????????????????## ####### | | ???????????????????????????????????## ####### | | ???????????????????????????????????## % # # | | ??????????????????#############????##% #] ! # | | ??????????????????# #????## # + | | ??????????????????# #????## # # | | ??????????????????# #????## # # | | ??????????????????+ #??#### # = / | | ??????????????????# a #??#### # # | | ??????????????????# #??##"" # # | | ??????????????????# @ #??##T # # | | ??????????????????########Y####??#### # # | | ???????????????????????### ###???#### # # | | ?????????????????????#####%##########]= / # | | ????????????????H??######! %######### ####### | | ???????????????????####%#! %%% * % % ####### | | ???????????????????## +%[%##########+########### | | ???????????????????#######%####### [ %! ####### | | ???????????????????#######%###??## "" ##?? | | ????????????????????????##=+ ???## """##?? | | ????????????????????????## #T##?## """ R"##?? | | ????????????????????????## ####?## """ [/!"""##?? | | ???????????????????????^^^^####?## """ [/!#####?? | | ????????????????????????? ##???## [/ #####?? | | ????????????????????????? ##???## ##????? | | ???????????????????????? #????########T####????? | | ????????????????????????####????#############????? | | ????????????????????????####??????????#####??????? | | ?????????????????????????????????????????????????? | | ?????????????????????????????????????????????????? | | | | | | | | | | | +----------------------------------------------------+ Best States ------------- Heat Dissipation 75 Energy Generation 14 Energy Capacity 275 Matter Stores 300 Matter Capacity 300 Sight Range 16 Terrain Scan Density 10 Armor Coverage 225 Core Shielding 20 Evasion (%) 55 Recoil Reduction 2 Offensive Hacking 10 Item Schematics ----------------- Exp. Sensor Array | -8/Materials | Scanalyzed Cooling System | -8/Materials | Scanalyzed Robot Schematics ------------------ None Fabricated ------------ Nothing Alien Tech Used ----------------- None Achievements -------------- None Challenges ------------ None Game ------ Seed AluminumSignalFalx Manual? 0 Play Time 00:35:33 Cumulative 281.1 hours Start 2021.08.25 @ 22:20:04 End 2021.08.25 @ 23:03:34 Sessions 3 Manual Loads 0 Difficulty Rogue Special Mode None Game No. 329 Rogue 329 Adventurer 0 Explorer 0 Win Type - Total 5 Types 5/0/0/0/0/0/0/0/0 Lore% 69 Gallery% 86 Achievement% 65 Wizard Run 0 Options --------- ASCII 0 Keyboard 0 Movement Mouse Keybinds 1 Fullscreen 2 Font 24/Smallcaps Map View 76x50 Tactical HUD 1 Map Filters NONE Filters NONE Steam 1 RUN: 70a743b6-e82b-4125-9833-df66be2475f0